bitfinex/quotes_BTCUSD_20250615
["timestamp","ask_amount","ask_price","bid_price","bid_amount"]
[1749946685372,0.0136068,105640.0,105630.0,0.95848215]
[1749946686033,0.0136068,105640.0,105630.0,0.99635715]
[1749946687785,0.00414132,105640.0,105630.0,0.99635715]
[1749946688485,0.00414132,105640.0,105630.0,1.01265715]
[1749946689222,0.57272503,105650.0,105640.0,0.20825381]
[1749946689423,0.38346765,105650.0,105640.0,0.4673886]
[1749946689632,0.39293286,105650.0,105640.0,0.4673886]
[1749946689844,0.39293622,105650.0,105640.0,0.4673886]
[1749946690048,0.40182054,105650.0,105640.0,0.4673886]
[1749946690275,0.40123964,105650.0,105640.0,0.47685408]
[1749946690480,0.41070413,105650.0,105640.0,0.47785408]
[1749946690712,0.40240062,105650.0,105640.0,0.47985408]
[1749946690828,0.42016923,105650.0,105640.0,0.47985408]
[1749946691035,0.42016914,105650.0,105640.0,0.47985408]
[1749946691456,0.4024006,105650.0,105640.0,0.47985408]
[1749946691642,0.42016922,105650.0,105640.0,0.47985408]
[1749946691894,0.41128492,105650.0,105640.0,0.47985408]
[1749946692103,0.40240062,105650.0,105640.0,0.47985408]
[1749946692310,0.42016923,105650.0,105640.0,0.47985408]
[1749946692513,0.42016923,105650.0,105640.0,0.77475408]
[1749946692738,0.41128476,105650.0,105640.0,0.77475408]
[1749946692947,0.41128487,105650.0,105640.0,0.77475408]
[1749946693175,0.40240058,105650.0,105640.0,0.77475408]
[1749946693379,0.42016906,105650.0,105640.0,0.77475408]
[1749946693548,0.40240057,105650.0,105640.0,0.77475408]
[1749946693775,0.39351632,105650.0,105640.0,0.77475408]
[1749946693975,0.42016626,105650.0,105640.0,0.77475408]
[1749946694137,0.42016636,105650.0,105640.0,0.77475408]
[1749946694495,0.42016641,105650.0,105640.0,0.77475408]
[1749946694702,0.41070129,105650.0,105640.0,0.77475408]
[1749946694918,0.39293456,105650.0,105640.0,0.77475408]
[1749946695127,0.41070128,105650.0,105640.0,0.77475408]
[1749946695333,0.40181791,105650.0,105640.0,0.77475408]
[1749946695563,0.41070128,105650.0,105640.0,0.77475408]
[1749946696093,0.39293456,105650.0,105640.0,0.77475408]
[1749946696303,0.40181791,105650.0,105640.0,0.77475408]
[1749946696511,0.40181791,105650.0,105640.0,0.67860486]
[1749946696512,0.39293455,105650.0,105640.0,0.67860486]
[1749946696952,0.41070128,105650.0,105640.0,0.67860486]
[1749946697563,0.39293456,105650.0,105640.0,0.67860486]
[1749946697773,0.40181792,105650.0,105640.0,0.67860486]
[1749946697978,0.41070128,105650.0,105640.0,0.67860486]
[1749946698446,0.3840512,105650.0,105640.0,0.67860486]
[1749946698597,0.39293456,105650.0,105640.0,0.67860486]
[1749946698822,0.41070128,105650.0,105640.0,0.67860486]
[1749946699220,0.41070126,105650.0,105640.0,0.67860486]
[1749946699491,0.39293455,105650.0,105640.0,0.67860486]
[1749946699685,0.41070126,105650.0,105640.0,0.67860486]
[1749946700011,0.39293456,105650.0,105640.0,0.67860486]
[1749946700212,0.41070126,105650.0,105640.0,0.77475408]
[1749946700617,0.41070128,105650.0,105640.0,0.77475408]
[1749946700766,0.41070128,105650.0,105640.0,0.67860486]
[1749946701126,0.39293456,105650.0,105640.0,0.67860486]
[1749946701350,0.41070128,105650.0,105640.0,0.67860486]
[1749946701962,0.40181792,105650.0,105640.0,0.67860486]
[1749946702202,0.41070018,105650.0,105640.0,0.67860486]
[1749946702410,0.41069963,105650.0,105640.0,0.67860486]
[1749946702623,0.40577964,105650.0,105640.0,0.67860486]
[1749946702824,0.40577965,105650.0,105640.0,0.67860486]
[1749946703108,0.40577964,105650.0,105640.0,0.67860486]
[1749946703530,0.39689683,105650.0,105640.0,0.67860486]
[1749946703735,0.38801402,105650.0,105640.0,0.67860486]
[1749946703955,0.37913121,105650.0,105640.0,0.67860486]
[1749946704165,0.39689683,105650.0,105640.0,0.67860486]
[1749946704397,0.40577964,105650.0,105640.0,0.67860486]
[1749946704613,0.38859633,105650.0,105640.0,0.67860486]
[1749946704829,0.41524476,105650.0,105640.0,0.67860486]
[1749946705051,0.3974796,105650.0,105640.0,0.67860486]
[1749946705268,0.41524613,105650.0,105640.0,0.67860486]
[1749946705718,0.40636288,105650.0,105640.0,0.67860486]
[1749946706133,0.41524617,105650.0,105640.0,0.67860486]
[1749946706991,0.39747961,105650.0,105640.0,0.67860486]
[1749946707208,0.41524617,105650.0,105640.0,0.67860486]
[1749946707663,0.37854946,105650.0,105640.0,0.72992464]
[1749946707872,0.37991596,105650.0,105640.0,0.72992464]
[1749946708081,0.38938099,105650.0,105640.0,0.72988464]
[1749946708304,0.37161446,105650.0,105640.0,0.72988464]
[1749946708511,0.3716144,105650.0,105640.0,0.72988464]
[1749946709848,0.36273121,105650.0,105640.0,0.72988464]
[1749946710379,0.3716144,105650.0,105640.0,0.72988464]
[1749946711928,0.3716144,105650.0,105640.0,0.67856486]
[1749946713079,0.36273121,105650.0,105640.0,0.67856486]
[1749946713496,0.3716144,105650.0,105640.0,0.67856486]
[1749946713704,0.36273121,105650.0,105640.0,0.67856486]
[1749946713912,0.3716144,105650.0,105640.0,0.67856486]
[1749946714200,0.36273121,105650.0,105640.0,0.67856486]
[1749946714403,0.3716144,105650.0,105640.0,0.67856486]
[1749946715060,0.36273121,105650.0,105640.0,0.67856486]
[1749946715304,0.3716144,105650.0,105640.0,0.75526162]
[1749946715728,0.37161422,105650.0,105640.0,0.75526162]
[1749946717779,0.3716151,105650.0,105640.0,0.75526162]
[1749946718792,0.36273121,105650.0,105640.0,0.75526162]
[1749946718995,0.3716151,105650.0,105640.0,0.75526162]
[1749946719297,0.36273121,105650.0,105640.0,0.75526162]
[1749946719504,0.37161502,105650.0,105640.0,0.75526162]
[1749946719887,0.35326618,105650.0,105640.0,0.75526162]
[1749946720243,0.371615,105650.0,105640.0,0.75526162]
[1749946720648,0.37161499,105650.0,105640.0,0.75526162]
[1749946720989,0.371615,105650.0,105640.0,0.75526162]
[1749946721528,0.36273121,105650.0,105640.0,0.75526162]
[1749946721745,0.36214997,105650.0,105640.0,0.75526162]
[1749946721957,0.371615,105650.0,105640.0,0.75526162]
[1749946722163,0.36273121,105650.0,105640.0,0.75526162]
[1749946722372,0.371615,105650.0,105640.0,0.75526162]
[1749946722589,0.36214996,105650.0,105640.0,0.75526162]
[1749946722819,0.36214997,105650.0,105640.0,0.75526162]
[1749946723040,0.37161491,105650.0,105640.0,0.75526162]
[1749946723858,0.36273112,105650.0,105640.0,0.75526162]
[1749946724081,0.37161461,105650.0,105640.0,0.75526162]
[1749946724709,0.37161461,105650.0,105640.0,0.77066162]
[1749946725116,0.36273112,105650.0,105640.0,0.77066162]
[1749946725318,0.37161461,105650.0,105640.0,0.77066162]
[1749946725520,0.3716146,105650.0,105640.0,0.77066162]
[1749946725725,0.37161459,105650.0,105640.0,0.7799399]
[1749946726349,0.36273112,105650.0,105640.0,0.7799399]
[1749946726555,0.37161459,105650.0,105640.0,0.77066162]
[1749946727678,0.36273112,105650.0,105640.0,0.77066162]
[1749946728106,0.37161459,105650.0,105640.0,0.77066162]
[1749946728305,0.36273112,105650.0,105640.0,0.77066162]
[1749946728515,0.37161459,105650.0,105640.0,0.69396486]
[1749946730426,0.36273112,105650.0,105640.0,0.69396486]
[1749946730636,0.3716135,105650.0,105640.0,0.69396486]
[1749946731055,0.36214856,105650.0,105640.0,0.69396486]
[1749946731550,0.36273112,105650.0,105640.0,0.69396486]
[1749946731761,0.3716135,105650.0,105640.0,0.69396486]
[1749946731969,0.36273112,105650.0,105640.0,0.69396486]
[1749946732180,0.35326618,105650.0,105640.0,0.69396486]
[1749946732389,0.36214856,105650.0,105640.0,0.69396486]
[1749946732802,0.35326618,105650.0,105640.0,0.69396486]
[1749946733227,0.36214855,105650.0,105640.0,0.69396486]
[1749946733430,0.35326618,105650.0,105640.0,0.69396486]
[1749946733910,0.34380133,105650.0,105640.0,0.69396486]
[1749946734125,0.3526837,105650.0,105640.0,0.70906486]
[1749946734541,0.36214837,105650.0,105640.0,0.70906486]
[1749946734975,0.34321939,105650.0,105640.0,0.73742663]
[1749946735200,0.34380133,105650.0,105640.0,0.73742663]
[1749946735422,0.35268384,105650.0,105640.0,0.73742663]
[1749946735649,0.35268375,105650.0,105640.0,0.78521679]
[1749946735865,0.36214833,105650.0,105640.0,0.78521679]
[1749946736674,0.35326582,105650.0,105640.0,0.78521679]
[1749946737102,0.36214833,105650.0,105640.0,0.78521679]
[1749946737314,0.36214834,105650.0,105640.0,0.78521679]
[1749946737525,0.35326582,105650.0,105640.0,0.78521679]
[1749946737738,0.36214833,105650.0,105640.0,0.78521679]
[1749946738043,0.35268375,105650.0,105640.0,0.78521679]
[1749946738732,0.34380124,105650.0,105640.0,0.78521679]
[1749946738943,0.35268375,105650.0,105640.0,0.78521679]
[1749946739350,0.00892987,105650.0,105640.0,0.78521679]
[1749946739557,0.00892973,105650.0,105640.0,0.78521679]
[1749946739767,4.736e-05,105650.0,105640.0,0.82309179]
[1749946742776,4.736e-05,105650.0,105640.0,0.82209179]
[1749946742996,0.00951176,105650.0,105640.0,0.82209179]
[1749946743220,4.736e-05,105650.0,105640.0,0.82509179]
[1749946743683,4.736e-05,105650.0,105640.0,0.83009179]
[1749946745845,4.736e-05,105650.0,105640.0,0.62882163]
[1749946746060,4.736e-05,105650.0,105640.0,0.82170163]
[1749946750960,4.736e-05,105650.0,105640.0,0.52680163]
[1749946751623,4.736e-05,105650.0,105640.0,0.62304339]
[1749946751834,4.736e-05,105650.0,105640.0,0.97974041]
[1749946752049,4.736e-05,105650.0,105640.0,0.80739169]
[1749946752264,4.736e-05,105650.0,105640.0,1.00035169]
[1749946752478,4.736e-05,105650.0,105640.0,0.70624247]
[1749946752707,4.736e-05,105650.0,105640.0,0.72015262]
[1749946752915,4.736e-05,105650.0,105640.0,0.91431262]
[1749946753121,4.736e-05,105650.0,105640.0,0.90483162]
[1749946753346,4.736e-05,105650.0,105640.0,0.94703968]
[1749946753555,4.736e-05,105650.0,105640.0,0.94707968]
[1749946753764,4.736e-05,105650.0,105640.0,0.97541533]
[1749946754195,4.736e-05,105650.0,105640.0,0.98245533]
[1749946754402,4.736e-05,105650.0,105640.0,0.99699618]
[1749946754825,4.736e-05,105650.0,105640.0,1.02544818]
[1749946760339,4.736e-05,105650.0,105640.0,0.99711253]
[1749946760802,4.736e-05,105650.0,105640.0,1.0256048]
[1749946761386,4.736e-05,105650.0,105640.0,0.99727253]
[1749946761799,4.736e-05,105650.0,105640.0,0.80387253]
[1749946762006,4.736e-05,105650.0,105640.0,0.99727253]
[1749946762241,4.736e-05,105650.0,105640.0,0.93609447]
[1749946763369,4.736e-05,105650.0,105640.0,0.95506447]
[1749946763578,4.736e-05,105650.0,105640.0,0.93609447]
[1749946767162,4.736e-05,105650.0,105640.0,0.99290698]
[1749946770216,4.736e-05,105650.0,105640.0,1.0890562]
[1749946781264,0.35383198,105660.0,105650.0,0.51255149]
[1749946781508,0.34494983,105660.0,105650.0,0.82247963]
[1749946781968,0.35383198,105660.0,105650.0,0.82247963]
[1749946782393,0.36329549,105660.0,105650.0,0.82747963]
[1749946782598,0.36329549,105660.0,105650.0,0.92362885]
[1749946782815,0.36329549,105660.0,105650.0,0.92862885]
[1749946783024,0.34494983,105660.0,105650.0,0.92862885]
[1749946783256,0.36329558,105660.0,105650.0,0.96834885]
[1749946783470,0.36329558,105660.0,105650.0,0.95324885]
[1749946783683,0.37275936,105660.0,105650.0,0.95324885]
[1749946783905,0.37275935,105660.0,105650.0,0.95324885]
[1749946784112,0.36387721,105660.0,105650.0,0.95324885]
[1749946784323,0.37275935,105660.0,105650.0,0.95324885]
[1749946784542,0.37275936,105660.0,105650.0,0.95324885]
[1749946784754,0.36387721,105660.0,105650.0,0.95324885]
[1749946784967,0.36329558,105660.0,105650.0,0.95324885]
[1749946785239,0.36387721,105660.0,105650.0,0.95324885]
[1749946785456,0.37275936,105660.0,105650.0,0.95324885]
[1749946785662,0.36387721,105660.0,105650.0,0.95324885]
[1749946785867,0.37275936,105660.0,105650.0,0.95324885]
[1749946786247,0.36329558,105660.0,105650.0,0.95324885]
[1749946786461,0.34494983,105660.0,105650.0,0.95324885]
[1749946786662,0.36387721,105660.0,105650.0,0.95324885]
[1749946786868,0.36329558,105660.0,105650.0,0.95324885]
[1749946787113,0.37275936,105660.0,105650.0,0.95324885]
[1749946787313,0.36387721,105660.0,105650.0,0.95324885]
[1749946787522,0.37275936,105660.0,105650.0,0.95324885]
[1749946787956,0.36329558,105660.0,105650.0,0.95324885]
[1749946788368,0.37275936,105660.0,105650.0,0.95324885]
[1749946788862,0.36387721,105660.0,105650.0,0.95324885]
[1749946789217,0.37276057,105660.0,105650.0,0.95324885]
[1749946789432,0.35383319,105660.0,105650.0,0.95324885]
[1749946789675,0.34494983,105660.0,105650.0,0.77570885]
[1749946789837,0.36329679,105660.0,105650.0,0.96910885]
[1749946790048,0.36329678,105660.0,105650.0,0.96910885]
[1749946790251,0.37276056,105660.0,105650.0,0.77570885]
[1749946790668,0.37276056,105660.0,105650.0,0.87359963]
[1749946790870,0.36387721,105660.0,105650.0,0.85769963]
[1749946791113,0.37276056,105660.0,105650.0,0.85769963]
[1749946791263,0.36387721,105660.0,105650.0,0.89557463]
[1749946791481,0.37276056,105660.0,105650.0,0.89557463]
[1749946791865,0.36329678,105660.0,105650.0,0.70153463]
[1749946792064,0.36387721,105660.0,105650.0,0.89557463]
[1749946792463,0.37276056,105660.0,105650.0,0.87907463]
[1749946792671,0.36329678,105660.0,105650.0,0.89407463]
[1749946792865,0.37276056,105660.0,105650.0,0.89407463]
[1749946793292,0.37276047,105660.0,105650.0,0.89407463]
[1749946793512,0.36387712,105660.0,105650.0,0.91304463]
[1749946793675,0.34494983,105660.0,105650.0,0.99022385]
[1749946793887,0.37276047,105660.0,105650.0,0.99022385]
[1749946794084,0.37276047,105660.0,105650.0,0.89407463]
[1749946794307,0.36387712,105660.0,105650.0,0.89407463]
[1749946794512,0.35441334,105660.0,105650.0,0.89407463]
[1749946794740,0.36329677,105660.0,105650.0,0.89407463]
[1749946794938,0.36329677,105660.0,105650.0,0.85619963]
[1749946795083,0.3632968,105660.0,105650.0,0.89407463]
[1749946795491,0.35441334,105660.0,105650.0,0.89407463]
[1749946795691,0.36329616,105660.0,105650.0,0.85619963]
[1749946795900,0.34494983,105660.0,105650.0,0.85619963]
[1749946796125,0.36329625,105660.0,105650.0,0.85619963]
[1749946796332,0.36329624,105660.0,105650.0,0.85619963]
[1749946796525,0.36329624,105660.0,105650.0,0.89407463]
[1749946796826,0.36329615,105660.0,105650.0,0.89407463]
[1749946797023,0.35441343,105660.0,105650.0,0.89407463]
[1749946797252,0.36329615,105660.0,105650.0,0.89407463]
[1749946798386,0.36329606,105660.0,105650.0,0.89407314]
[1749946798620,0.35441334,105660.0,105650.0,0.89407314]
[1749946799278,0.36329606,105660.0,105650.0,0.89407314]
[1749946799509,0.35441334,105660.0,105650.0,0.85619814]
[1749946800240,0.36329606,105660.0,105650.0,0.89407314]
[1749946800682,0.35441334,105660.0,105650.0,0.89407314]
[1749946800899,0.36329606,105660.0,105650.0,0.89407314]
[1749946801104,0.36329606,105660.0,105650.0,0.85619814]
[1749946801770,0.36329606,105660.0,105650.0,0.89395314]
[1749946802706,0.37275975,105660.0,105650.0,0.89395314]
[1749946802947,0.36387703,105660.0,105650.0,0.89395314]
[1749946803150,0.35441334,105660.0,105650.0,0.89395314]
[1749946803365,0.36329606,105660.0,105650.0,0.89395314]
[1749946803571,0.36329606,105660.0,105650.0,0.87895314]
[1749946804414,0.36329669,105660.0,105650.0,0.87895314]
[1749946805447,0.35441334,105660.0,105650.0,0.87895314]
[1749946805659,0.36329669,105660.0,105650.0,0.87895314]
[1749946805868,0.36329669,105660.0,105650.0,0.89435314]
[1749946806782,0.35441334,105660.0,105650.0,0.89435314]
[1749946806979,0.36329669,105660.0,105650.0,0.89435314]
[1749946807821,0.35383318,105660.0,105650.0,0.89435314]
[1749946808071,0.36329669,105660.0,105650.0,0.89435314]
[1749946808303,0.35441334,105660.0,105650.0,0.89435314]
[1749946808536,0.34946351,105660.0,105650.0,0.89435314]
[1749946809188,0.35834686,105660.0,105650.0,0.89435314]
[1749946809618,0.34946351,105660.0,105650.0,0.89435314]
[1749946809829,0.34888335,105660.0,105650.0,0.89435314]
[1749946810056,0.34946351,105660.0,105650.0,0.89435314]
[1749946810488,0.35834686,105660.0,105650.0,0.89435314]
[1749946810725,0.3589272,105660.0,105650.0,0.89435314]
[1749946810948,0.36780902,105660.0,105650.0,0.89435314]
[1749946812016,0.3589272,105660.0,105650.0,0.89435314]
[1749946812239,0.36780902,105660.0,105650.0,0.89435314]
[1749946813836,0.3589272,105660.0,105650.0,0.89435314]
[1749946814045,0.36780902,105660.0,105650.0,0.89435314]
[1749946814249,0.3589272,105660.0,105650.0,0.89435314]
[1749946814453,0.34888182,105660.0,105650.0,0.89435314]
[1749946814868,0.34,105660.0,105650.0,0.89435314]
[1749946815087,0.34888182,105660.0,105650.0,0.89435314]
[1749946816060,0.34,105660.0,105650.0,0.99050236]
[1749946816280,0.34888182,105660.0,105650.0,1.00580236]
[1749946816871,0.34,105660.0,105650.0,1.00580236]
[1749946817078,0.34888182,105660.0,105650.0,1.00580236]
[1749946817290,0.34,105660.0,105650.0,1.00580236]
[1749946817493,0.34888182,105660.0,105650.0,1.00580236]
[1749946817717,0.34,105660.0,105650.0,0.81188236]
[1749946817926,0.34888182,105660.0,105650.0,1.00584525]
[1749946818132,0.34,105660.0,105650.0,1.00584525]
[1749946818354,0.34888182,105660.0,105650.0,1.00584525]
[1749946820489,0.34,105660.0,105650.0,1.00584525]
[1749946821072,0.34888182,105660.0,105650.0,1.00584525]
[1749946821500,0.34,105660.0,105650.0,1.00576525]
[1749946821700,0.34888182,105660.0,105650.0,1.00576525]
[1749946822144,0.34,105660.0,105650.0,1.00576525]
[1749946822349,0.34888182,105660.0,105650.0,1.00576525]
[1749946822758,0.34,105660.0,105650.0,1.00576525]
[1749946822960,0.34,105660.0,105650.0,0.81188525]
[1749946823165,0.34888182,105660.0,105650.0,1.00576525]
[1749946823369,0.34888182,105660.0,105650.0,0.89431603]
[1749946823858,0.34888182,105660.0,105650.0,0.70043603]
[1749946823859,0.34,105660.0,105650.0,0.70043603]
[1749946824066,0.34888182,105660.0,105650.0,0.89427603]
[1749946824717,0.34888182,105660.0,105650.0,0.70043603]
[1749946824920,0.34,105660.0,105650.0,0.89427603]
[1749946825130,0.34888182,105660.0,105650.0,0.70043603]
[1749946825355,0.34888335,105660.0,105650.0,0.70043603]
[1749946825570,0.34888335,105660.0,105650.0,0.89431603]
[1749946826003,0.34888335,105660.0,105650.0,0.87891603]
[1749946826210,0.34888335,105660.0,105650.0,0.68503603]
[1749946826417,0.34888335,105660.0,105650.0,0.87891603]
[1749946827485,0.34,105660.0,105650.0,0.87887603]
[1749946827719,0.34888289,105660.0,105650.0,0.87887603]
[1749946827921,0.34,105660.0,105650.0,0.87887603]
[1749946828127,0.34888289,105660.0,105650.0,0.87887603]
[1749946829729,0.34,105660.0,105650.0,0.87887603]
[1749946829921,0.34888284,105660.0,105650.0,0.87883603]
[1749946830759,0.34888282,105660.0,105650.0,0.87883603]
[1749946831792,0.34,105660.0,105650.0,0.68503603]
[1749946831996,0.34888282,105660.0,105650.0,0.89493603]
[1749946832622,0.34,105660.0,105650.0,0.89493603]
[1749946832826,0.34888282,105660.0,105650.0,0.89493603]
[1749946833244,0.34,105660.0,105650.0,0.89493603]
[1749946833451,0.34888282,105660.0,105650.0,0.89493603]
[1749946834087,0.34888282,105660.0,105650.0,0.70113603]
[1749946834306,0.36528282,105660.0,105650.0,0.87879603]
[1749946834523,0.39072747,105660.0,105650.0,0.64716103]
[1749946834742,0.42742214,105660.0,105650.0,0.69541487]
[1749946834957,0.43630627,105660.0,105650.0,0.70487981]
[1749946835163,0.61670932,105660.0,105650.0,0.71434466]
[1749946835418,0.6066654,105660.0,105650.0,0.33322042]
[1749946835628,0.61332836,105660.0,105650.0,0.48718042]
[1749946835836,0.59556135,105660.0,105650.0,0.30485264]
[1749946836047,0.61332938,105660.0,105650.0,0.48718042]
[1749946836253,0.60666634,105660.0,105650.0,0.45885264]
[1749946836465,0.59556194,105660.0,105650.0,0.45885264]
[1749946836697,0.61333007,105660.0,105650.0,0.45385264]
[1749946836909,0.61333007,105660.0,105650.0,0.45681264]
[1749946837406,0.5888989,105660.0,105650.0,0.30285264]
[1749946837636,0.59556194,105660.0,105650.0,0.45681264]
[1749946837874,0.60666703,105660.0,105650.0,0.29785264]
[1749946838105,0.61333007,105660.0,105650.0,0.15996]
[1749946838339,0.61333006,105660.0,105650.0,0.15996]
[1749946838572,0.61333006,105660.0,105650.0,0.006]
[1749946838799,0.61333007,105660.0,105650.0,0.15996]
[1749946839043,0.70068802,105660.0,105650.0,0.006]
[1749946839277,0.70292,105660.0,105650.0,0.16]
[1749946839511,0.71180497,105660.0,105650.0,0.16]
[1749946839739,0.72069003,105660.0,105650.0,0.16]
[1749946839954,0.71402627,105660.0,105650.0,0.16]
[1749946840173,0.72069005,105660.0,105650.0,0.157]
[1749946840407,0.73846005,105660.0,105650.0,0.15704]
[1749946840682,0.73846001,105660.0,105650.0,0.004]
[1749946840904,0.72957499,105660.0,105650.0,0.15508]
[1749946841114,0.72957626,105660.0,105650.0,0.003]
[1749946841380,0.71402671,105660.0,105650.0,0.003]
[1749946841603,0.70514127,105660.0,105650.0,0.003]
[1749946841828,0.73846164,105660.0,105650.0,0.003]
[1749946842053,0.73846166,105660.0,105650.0,0.003]
[1749946842282,0.72069079,105660.0,105650.0,0.003]
[1749946842514,0.72069083,105660.0,105650.0,0.003]
[1749946842963,0.73179763,105660.0,105650.0,0.003]
[1749946843192,0.73846173,105660.0,105650.0,0.003]
[1749946843405,0.71180536,105660.0,105650.0,0.003]
[1749946843613,0.71402673,105660.0,105650.0,0.003]
[1749946843826,0.73846159,105660.0,105650.0,0.003]
[1749946844038,0.72957621,105660.0,105650.0,0.003]
[1749946844250,0.73179757,105660.0,105650.0,0.003]
[1749946844501,0.73846165,105660.0,105650.0,0.003]
[1749946844713,0.73846167,105660.0,105650.0,0.003]
[1749946844925,0.71402658,105660.0,105650.0,0.003]
[1749946845144,0.7229119,105660.0,105650.0,0.003]
[1749946845373,0.72069048,105660.0,105650.0,0.003]
[1749946845586,0.7316822,105660.0,105650.0,0.003]
[1749946845808,0.70514127,105660.0,105650.0,0.003]
[1749946846021,0.71398815,105660.0,105650.0,0.003]
[1749946846225,0.70514127,105660.0,105650.0,0.003]
[1749946846441,0.71398818,105660.0,105650.0,0.003]
[1749946846873,0.71398816,105660.0,105650.0,0.003]
[1749946847077,0.71398817,105660.0,105650.0,0.003]
[1749946847287,0.70514127,105660.0,105650.0,0.003]
[1749946847725,0.71398812,105660.0,105650.0,0.003]
[1749946848152,0.70514127,105660.0,105650.0,0.003]
[1749946848381,0.71398813,105660.0,105650.0,0.003]
[1749946848595,0.70514127,105660.0,105650.0,0.003]
[1749946848807,0.71398813,105660.0,105650.0,0.003]
[1749946849046,0.70514127,105660.0,105650.0,0.003]
[1749946850116,0.70514127,105660.0,105650.0,0.1923043]
[1749946850335,0.37665893,105660.0,105650.0,0.22069885]
[1749946850542,0.37665893,105660.0,105650.0,0.3103102]
[1749946850543,0.35834863,105660.0,105650.0,0.3103102]
[1749946850749,0.38674068,105660.0,105650.0,0.23659885]
[1749946851429,0.37727646,105660.0,105650.0,0.23659885]
[1749946851846,0.38674068,105660.0,105650.0,0.23659885]
[1749946852666,0.39620499,105660.0,105650.0,0.22069885]
[1749946853085,0.59242769,105660.0,105650.0,0.21123436]
[1749946854037,0.59242769,105660.0,105650.0,0.22069912]
[1749946854244,0.58296373,105660.0,105650.0,0.21123436]
[1749946854486,0.57349959,105660.0,105650.0,0.21123436]
[1749946855686,0.56403537,105660.0,105650.0,0.20176942]
[1749946855889,0.56403537,105660.0,105650.0,0.21123436]
[1749946856693,0.55457106,105660.0,105650.0,0.21123445]
[1749946857228,0.56123444,105660.0,105650.0,0.21123445]
[1749946857427,0.57011895,105660.0,105650.0,0.21123445]
[1749946857810,0.58788795,105660.0,105650.0,0.21123445]
[1749946858194,0.58788796,105660.0,105650.0,0.21123445]
[1749946858395,0.58788797,105660.0,105650.0,0.21123445]
[1749946858650,0.57011895,105660.0,105650.0,0.21123445]
[1749946858878,0.58788797,105660.0,105650.0,0.21123445]
[1749946859078,0.57400346,105660.0,105650.0,0.36543445]
[1749946859281,0.55845557,105660.0,105650.0,0.36543445]
[1749946859488,0.58288798,105660.0,105650.0,0.36543445]
[1749946859911,0.56511895,105660.0,105650.0,0.003]
[1749946860104,0.59928803,105660.0,105650.0,0.15716]
[1749946860245,0.58374036,105660.0,105650.0,0.15716]
[1749946860464,0.55845571,105660.0,105650.0,0.15716]
[1749946861001,0.56734017,105660.0,105650.0,0.15716]
[1749946861204,0.57400389,105660.0,105650.0,0.15716]
[1749946861577,0.56734039,105660.0,105650.0,0.15716]
[1749946861783,0.57400372,105660.0,105650.0,0.15716]
[1749946861957,0.5828883,105660.0,105650.0,0.15716]
[1749946862156,0.57622483,105660.0,105650.0,0.15716]
[1749946862363,0.5651192,105660.0,105650.0,0.15716]
[1749946862584,0.57622502,105660.0,105650.0,0.15716]
[1749946862818,0.56511917,105660.0,105650.0,0.15716]
[1749946863272,0.56511918,105660.0,105650.0,0.15716]
[1749946863538,0.58288847,105660.0,105650.0,0.15716]
[1749946863746,0.58288846,105660.0,105650.0,0.15716]
[1749946863948,0.56511918,105660.0,105650.0,0.15716]
[1749946864097,0.57622488,105660.0,105650.0,0.15716]
[1749946864313,0.55844,105660.0,105650.0,0.15716]
[1749946864513,0.57617792,105660.0,105650.0,0.15716]
[1749946864913,0.55844002,105660.0,105650.0,0.15716]
[1749946865165,0.55843995,105660.0,105650.0,0.15716]
[1749946865367,0.57617774,105660.0,105650.0,0.15716]
[1749946865553,0.57617776,105660.0,105650.0,0.15716]
[1749946865787,0.57617777,105660.0,105650.0,0.15716]
[1749946866232,0.54957106,105660.0,105650.0,0.15716]
[1749946866439,0.57617815,105660.0,105650.0,0.15716]
[1749946866648,0.55977824,105660.0,105650.0,0.15716]
[1749946867067,0.57597824,105660.0,105650.0,0.15716]
[1749946867494,0.57597775,105660.0,105650.0,0.15716]
[1749946867699,0.5759778,105660.0,105650.0,0.15716]
[1749946867901,0.54937106,105660.0,105650.0,0.15716]
[1749946868106,0.57597765,105660.0,105650.0,0.15716]
[1749946868282,0.55823991,105660.0,105650.0,0.15716]
[1749946868482,0.57597768,105660.0,105650.0,0.15716]
[1749946868714,0.55823993,105660.0,105650.0,0.15716]
[1749946868925,0.57597768,105660.0,105650.0,0.15716]
[1749946869136,0.55823993,105660.0,105650.0,0.15716]
[1749946869359,0.55823993,105660.0,105650.0,0.35592942]
[1749946869568,0.55824006,105660.0,105650.0,0.3464643]
[1749946869750,0.57597738,105660.0,105650.0,0.15716]
[1749946870006,0.54937106,105660.0,105650.0,0.16662521]
[1749946870630,0.55823976,105660.0,105650.0,0.16662521]
[1749946871499,0.55823978,105660.0,105650.0,0.16662521]
[1749946871717,0.57597789,105660.0,105650.0,0.16662521]
[1749946871917,0.56710905,105660.0,105650.0,0.16662521]
[1749946872166,0.56710906,105660.0,105650.0,0.16662521]
[1749946872626,0.55824006,105660.0,105650.0,0.16662521]
[1749946872844,0.55977805,105660.0,105650.0,0.16662521]
[1749946873087,0.53317106,105660.0,105650.0,0.16662521]
[1749946873312,0.55090906,105660.0,105650.0,0.16662521]
[1749946873557,0.56650883,105660.0,105650.0,0.16662521]
[1749946873768,0.57537766,105660.0,105650.0,0.16662521]
[1749946873993,0.57537759,105660.0,105650.0,0.16662521]
[1749946874223,0.56650875,105660.0,105650.0,0.16662521]
[1749946874449,0.99280418,105660.0,105650.0,0.35592951]
[1749946874917,1.00167302,105660.0,105650.0,0.35592951]
[1749946875321,1.0194107,105660.0,105650.0,0.35592951]
[1749946875556,1.02611553,105660.0,105650.0,0.35592951]
[1749946875753,1.0261142,105660.0,105650.0,0.35592951]
[1749946875962,1.0194522,105660.0,105650.0,0.35592951]
[1749946876209,1.0261142,105660.0,105650.0,0.35592951]
[1749946876421,1.0105142,105660.0,105650.0,0.35592951]
[1749946876638,1.00163153,105660.0,105650.0,0.35592951]
[1749946877122,1.0038522,105660.0,105650.0,0.35592951]
[1749946877366,0.98386618,105660.0,105650.0,0.35592951]
[1749946877586,0.97720418,105660.0,105650.0,0.35592951]
[1749946877997,1.0105142,105660.0,105650.0,0.35592951]
[1749946878204,0.56648108,105660.0,105650.0,0.35592951]
[1749946878435,0.53983306,105660.0,105650.0,0.36539463]
[1749946878670,0.56648108,105660.0,105650.0,0.37485966]
[1749946878870,0.53983306,105660.0,105650.0,0.37485966]
[1749946879076,0.56648107,105660.0,105650.0,0.37485966]
[1749946879425,0.54871573,105660.0,105650.0,0.37485966]
[1749946879600,0.5509364,105660.0,105650.0,0.3843246]
[1749946879833,0.54871573,105660.0,105650.0,0.3843246]
[1749946880036,0.56648107,105660.0,105650.0,0.3843246]
[1749946880236,0.5575984,105660.0,105650.0,0.3843246]
[1749946880346,0.54871573,105660.0,105650.0,0.3843246]
[1749946880551,0.5575984,105660.0,105650.0,0.3843246]
[1749946880754,0.53317106,105660.0,105650.0,0.3843246]
[1749946880995,0.54871573,105660.0,105650.0,0.3843246]
[1749946881452,0.54205373,105660.0,105650.0,0.3843246]